[Event "CCT Chessable Masters Play-In 2025"]
[Site "Online"]
[Date "2025.02.17"]
[Round "5.46"]
[White "Shimanov, Aleksandr"]
[Black "Murzin, Volodar"]
[Result "1/2-1/2"]
[ECO "C47"]
[WhiteElo "2593"]
[BlackElo "2657"]
[PlyCount "113"]
[EventDate "2025.02.13"]
[EventType "swiss"]
[EventCountry "NET"]
[TimeControl "600"]
[WhiteClock "0:02:25"]
[BlackClock "0:02:28"]

1. e4 {[%emt 0:00:08]} e5 {[%emt 0:00:01]} 2. Nf3 {[%emt 0:00:01]} Nc6 {[%emt 0:00:00]} 3. Nc3 {[%emt 0:00:00]} Nf6 {[%emt 0:00:01]} 4. h3 {[%emt 0:00:01]} Be7 {[%emt 0:00:15]} 5. d4 {[%emt 0:00:04]} d6 {[%emt 0:00:12]} 6. Bb5 {[%emt 0:00:49]} Bd7 {[%emt 0:00:03]} 7. d5 {[%emt 0:00:08]} Nb8 {[%emt 0:00:02]} 8. Bd3 {[%emt 0:00:01]} O-O {[%emt 0:00:11]} 9. Ne2 {[%emt 0:00:03]} c6 {[%emt 0:00:40]} 10. c4 {[%emt 0:00:05]} Na6 {[%emt 0:00:02]} 11. Be3 {[%emt 0:00:18]} Qa5+ {[%emt 0:00:09]} 12. Qd2 {[%emt 0:00:11]} Qxd2+ {[%emt 0:00:09]} 13. Nxd2 {[%emt 0:00:15]} Rfc8 {[%emt 0:00:06]} 14. Nc3 {[%emt 0:00:05]} Nc5 {[%emt 0:00:12]} 15. Bxc5 {[%emt 0:00:06]} dxc5 {[%emt 0:00:00]} 16. a4 {[%emt 0:00:07]} Ne8 {[%emt 0:00:10]} 17. a5 {[%emt 0:00:08]} Nc7 {[%emt 0:00:02]} 18. Ke2 {[%emt 0:00:10]} Re8 {[%emt 0:00:09]} 19. Rhd1 {[%emt 0:00:10]} Na6 {[%emt 0:00:02]} 20. Nf3 {[%emt 0:00:10]} Bf8 {[%emt 0:00:51]} 21. Bc2 {[%emt 0:00:08]} Nb4 {[%emt 0:00:09]} 22. dxc6 {[%emt 0:00:20]} bxc6 {[%emt 0:00:41]} 23. Rxd7 {[%emt 0:00:11]} Nxc2 {[%emt 0:00:02]} 24. Ra2 {[%emt 0:00:02]} f6 {[%emt 0:00:11]} 25. a6 {[%emt 0:00:19]} Reb8 {[%emt 0:00:17]} 26. Rb7 {[%emt 0:01:10]} Nb4 {[%emt 0:00:04]} 27. Ra4 {[%emt 0:00:01]} Nxa6 {[%emt 0:00:08]} 28. Rxb8 {[%emt 0:00:01]} Nxb8 {[%emt 0:00:00]} 29. Ne1 {[%emt 0:00:02]} Kf7 {[%emt 0:00:04]} 30. Nd3 {[%emt 0:00:01]} Ke8 {[%emt 0:00:12]} 31. Ra3 {[%emt 0:00:03]} Kd8 {[%emt 0:00:04]} 32. Na4 {[%emt 0:00:34]} Nd7 {[%emt 0:00:04]} 33. Ra1 {[%emt 0:00:09]} Kc7 {[%emt 0:00:05]} 34. Kd2 {[%emt 0:00:01]} Rd8 {[%emt 0:00:19]} 35. Kc2 {[%emt 0:00:01]} Bd6 {[%emt 0:00:10]} 36. b3 {[%emt 0:00:02]} Kb7 {[%emt 0:00:06]} 37. Rh1 {[%emt 0:00:04]} Rf8 {[%emt 0:00:03]} 38. f3 {[%emt 0:00:02]} h5 {[%emt 0:00:35]} 39. Rd1 {[%emt 0:00:23]} Kc7 {[%emt 0:00:02]} 40. Ra1 {[%emt 0:00:03]} h4 {[%emt 0:00:05]} 41. Nc3 {[%emt 0:00:02]} Kb7 {[%emt 0:00:01]} 42. Na4 {[%emt 0:00:04]} Kc7 {[%emt 0:00:03]} 43. Kd2 {[%emt 0:00:11]} Rb8 {[%emt 0:00:03]} 44. Kc2 {[%emt 0:00:01]} Rh8 {[%emt 0:00:03]} 45. Kd2 {[%emt 0:00:04]} Rb8 {[%emt 0:00:03]} 46. Kc3 {[%emt 0:00:02]} Rh8 {[%emt 0:00:02]} 47. Nab2 {[%emt 0:00:01]} Kb7 {[%emt 0:00:02]} 48. Rd1 {[%emt 0:00:02]} Nf8 {[%emt 0:00:06]} 49. Na4 {[%emt 0:00:15]} Ne6 {[%emt 0:00:02]} 50. Rd2 {[%emt 0:00:00]} Kc7 {[%emt 0:00:02]} 51. Rd1 {[%emt 0:00:01]} Rd8 {[%emt 0:00:03]} 52. Rd2 {[%emt 0:00:01]} Be7 {[%emt 0:00:02]} 53. Ra2 {[%emt 0:00:05]} Kb7 {[%emt 0:00:09]} 54. Re2 {[%emt 0:00:04]} Kc7 {[%emt 0:00:09]} 55. Ra2 {[%emt 0:00:02]} Kb7 {[%emt 0:00:00]} 56. Ra1 {[%emt 0:00:02]} Kc7 {[%emt 0:00:04]} 57. Ra2 {[%emt 0:00:01]} 1/2-1/2

[Event "CCT Chessable Masters Play-In 2025"]
[Site "Online"]
[Date "2025.02.17"]
[Round "5.47"]
[White "Akobian, Varuzhan"]
[Black "Samadov, Read"]
[Result "0-1"]
[ECO "D91"]
[WhiteElo "2564"]
[BlackElo "2501"]
[PlyCount "70"]
[EventDate "2025.02.13"]
[EventType "swiss"]
[EventCountry "NET"]
[TimeControl "600"]
[WhiteClock "0:00:32"]
[BlackClock "0:02:22"]

1. d4 {[%emt 0:00:08]} Nf6 {[%emt 0:00:02]} 2. c4 {[%emt 0:00:12]} g6 {[%emt 0:00:06]} 3. Nc3 {[%emt 0:00:01]} Bg7 {[%emt 0:00:01]} 4. Nf3 {[%emt 0:00:03]} O-O {[%emt 0:00:03]} 5. Bg5 {[%emt 0:00:02]} d5 {[%emt 0:00:14]} 6. Bxf6 {[%emt 0:00:15]} Bxf6 {[%emt 0:00:03]} 7. cxd5 {[%emt 0:00:02]} c5 {[%emt 0:00:21]} 8. dxc5 {[%emt 0:00:19]} Qa5 {[%emt 0:00:04]} 9. Qd2 {[%emt 0:00:05]} Rd8 {[%emt 0:00:26]} 10. Rc1 {[%emt 0:00:19]} Bg4 {[%emt 0:00:16]} 11. e3 {[%emt 0:00:45]} Na6 {[%emt 0:01:51]} 12. Bxa6 {[%emt 0:00:17]} Qxa6 {[%emt 0:00:06]} 13. Nd4 {[%emt 0:00:19]} Rac8 {[%emt 0:00:37]} 14. b4 {[%emt 0:00:14]} Bg7 {[%emt 0:00:53]} 15. b5 {[%emt 0:00:16]} Qa3 {[%emt 0:00:06]} 16. c6 {[%emt 0:00:04]} e5 {[%emt 0:00:29]} 17. Nc2 {[%emt 0:00:24]} Qa5 {[%emt 0:00:03]} 18. e4 {[%emt 0:01:33]} bxc6 {[%emt 0:00:03]} 19. bxc6 {[%emt 0:00:02]} Rxc6 {[%emt 0:00:03]} 20. Ne3 {[%emt 0:00:03]} Bc8 {[%emt 0:00:22]} 21. dxc6 {[%emt 0:00:44]} Rxd2 {[%emt 0:00:02]} 22. Kxd2 {[%emt 0:00:00]} Bf8 {[%emt 0:00:10]} 23. Rhd1 {[%emt 0:00:24]} Ba6 {[%emt 0:00:06]} 24. Rc2 {[%emt 0:00:16]} f5 {[%emt 0:00:26]} 25. exf5 {[%emt 0:00:49]} gxf5 {[%emt 0:00:04]} 26. Nxf5 {[%emt 0:00:10]} Bb4 {[%emt 0:00:05]} 27. Rdc1 {[%emt 0:01:11]} Qd5+ {[%emt 0:00:11]} 28. Ke1 {[%emt 0:00:04]} Qd3 {[%emt 0:00:01]} 29. Ng3 {[%emt 0:00:02]} e4 {[%emt 0:00:18]} 30. c7 {[%emt 0:00:03]} e3 {[%emt 0:00:01]} 31. fxe3 {[%emt 0:00:08]} Qxe3+ {[%emt 0:00:00]} 32. Nge2 {[%emt 0:00:01]} Bxc3+ {[%emt 0:00:02]} 33. Kf1 {[%emt 0:00:06]} Bxe2+ {[%emt 0:00:01]} 34. Rxe2 {[%emt 0:00:03]} Qxc1+ {[%emt 0:00:01]} 35. Kf2 {[%emt 0:00:04]} Qf4+ {[%emt 0:00:01]} 0-1

[Event "CCT Chessable Masters Play-In 2025"]
[Site "Online"]
[Date "2025.02.17"]
[Round "5.48"]
[White "Aryan Chopra"]
[Black "Bartel, Mateusz"]
[Result "1-0"]
[ECO "A05"]
[WhiteElo "2620"]
[BlackElo "2629"]
[PlyCount "141"]
[EventDate "2025.02.13"]
[EventType "swiss"]
[EventCountry "NET"]
[TimeControl "600"]
[WhiteClock "0:01:04"]
[BlackClock "0:00:08"]

1. Nf3 {[%emt 0:00:30]} Nf6 {[%emt 0:00:03]} 2. g3 {[%emt 0:00:07]} b5 {[%emt 0:00:01]} 3. Bg2 {[%emt 0:00:05]} Bb7 {[%emt 0:00:02]} 4. O-O {[%emt 0:00:00]} e6 {[%emt 0:00:02]} 5. d3 {[%emt 0:00:06]} Be7 {[%emt 0:00:05]} 6. Nbd2 {[%emt 0:00:02]} b4 {[%emt 0:00:07]} 7. e4 {[%emt 0:00:04]} d6 {[%emt 0:00:01]} 8. Re1 {[%emt 0:00:06]} c5 {[%emt 0:00:04]} 9. e5 {[%emt 0:00:04]} dxe5 {[%emt 0:00:01]} 10. Nxe5 {[%emt 0:00:00]} Bxg2 {[%emt 0:00:03]} 11. Kxg2 {[%emt 0:00:00]} a5 {[%emt 0:00:09]} 12. a3 {[%emt 0:00:14]} a4 {[%emt 0:00:14]} 13. Ndc4 {[%emt 0:00:08]} O-O {[%emt 0:00:04]} 14. Qf3 {[%emt 0:00:05]} Nd5 {[%emt 0:00:15]} 15. h4 {[%emt 0:00:04]} f6 {[%emt 0:00:31]} 16. Ng4 {[%emt 0:00:03]} Nc6 {[%emt 0:00:01]} 17. Be3 {[%emt 0:00:05]} h5 {[%emt 0:00:55]} 18. Nh2 {[%emt 0:00:02]} Qe8 {[%emt 0:00:01]} 19. Qe2 {[%emt 0:00:59]} Qf7 {[%emt 0:00:04]} 20. Nf3 {[%emt 0:00:03]} Rfe8 {[%emt 0:00:06]} 21. Bd2 {[%emt 0:00:01]} Bf8 {[%emt 0:00:02]} 22. Qe4 {[%emt 0:00:05]} e5 {[%emt 0:00:27]} 23. c3 {[%emt 0:00:20]} Red8 {[%emt 0:00:26]} 24. cxb4 {[%emt 0:00:44]} cxb4 {[%emt 0:00:03]} 25. Rac1 {[%emt 0:00:01]} bxa3 {[%emt 0:01:03]} 26. bxa3 {[%emt 0:00:04]} Rab8 {[%emt 0:01:04]} 27. Ne3 {[%emt 0:00:24]} Nxe3+ {[%emt 0:00:02]} 28. Bxe3 {[%emt 0:00:13]} Ne7 {[%emt 0:00:08]} 29. Bc5 {[%emt 0:00:04]} Qd5 {[%emt 0:00:05]} 30. d4 {[%emt 0:00:08]} Rbc8 {[%emt 0:00:36]} 31. Qxd5+ {[%emt 0:00:13]} Rxd5 {[%emt 0:00:04]} 32. Bxe7 {[%emt 0:00:53]} Rxc1 {[%emt 0:00:00]} 33. Rxc1 {[%emt 0:00:01]} Bxe7 {[%emt 0:00:01]} 34. dxe5 {[%emt 0:00:01]} fxe5 {[%emt 0:00:21]} 35. Rc7 {[%emt 0:00:02]} Bd8 {[%emt 0:00:39]} 36. Rc8 {[%emt 0:00:55]} Kh7 {[%emt 0:00:16]} 37. Nxe5 {[%emt 0:00:03]} Be7 {[%emt 0:00:00]} 38. Nc4 {[%emt 0:00:06]} Rd3 {[%emt 0:00:09]} 39. Ra8 {[%emt 0:00:03]} Bxa3 {[%emt 0:00:02]} 40. Rxa4 {[%emt 0:00:01]} Be7 {[%emt 0:00:01]} 41. Ra5 {[%emt 0:00:02]} Kh6 {[%emt 0:00:05]} 42. Ne3 {[%emt 0:00:17]} Bf6 {[%emt 0:00:03]} 43. Kf3 {[%emt 0:00:04]} Kg6 {[%emt 0:00:02]} 44. Ke2 {[%emt 0:00:04]} Rb3 {[%emt 0:00:01]} 45. Nd5 {[%emt 0:00:05]} Rb2+ {[%emt 0:00:01]} 46. Kf3 {[%emt 0:00:02]} Rb3+ {[%emt 0:00:01]} 47. Kg2 {[%emt 0:00:01]} Kh6 {[%emt 0:00:27]} 48. Ra6 {[%emt 0:00:28]} Kg6 {[%emt 0:00:02]} 49. Nf4+ {[%emt 0:00:01]} Kh6 {[%emt 0:00:01]} 50. Ra8 {[%emt 0:00:01]} g6 {[%emt 0:00:03]} 51. Rg8 {[%emt 0:00:03]} Kh7 {[%emt 0:00:15]} 52. Rxg6 {[%emt 0:00:07]} Be5 {[%emt 0:00:01]} 53. Rg5 {[%emt 0:00:01]} Bxf4 {[%emt 0:00:00]} 54. gxf4 {[%emt 0:00:02]} Kh6 {[%emt 0:00:01]} 55. f5 {[%emt 0:00:03]} Rb4 {[%emt 0:00:01]} 56. Kg3 {[%emt 0:00:00]} Rb1 {[%emt 0:00:00]} 57. Rg6+ {[%emt 0:00:03]} Kh7 {[%emt 0:00:01]} 58. Kf4 {[%emt 0:00:01]} Rb4+ {[%emt 0:00:01]} 59. Kg5 {[%emt 0:00:01]} Rg4+ {[%emt 0:00:00]} 60. Kxh5 {[%emt 0:00:01]} Rf4 {[%emt 0:00:01]} 61. Kg5 {[%emt 0:00:01]} Rxf2 {[%emt 0:00:00]} 62. Ra6 {[%emt 0:00:01]} Rg2+ {[%emt 0:00:04]} 63. Kf6 {[%emt 0:00:01]} Rb2 {[%emt 0:00:01]} 64. Ra7+ {[%emt 0:00:05]} Kh6 {[%emt 0:00:01]} 65. Kf7 {[%emt 0:00:00]} Rf2 {[%emt 0:00:05]} 66. f6 {[%emt 0:00:01]} Kh7 {[%emt 0:00:01]} 67. Kf8+ {[%emt 0:00:02]} Kh8 {[%emt 0:00:01]} 68. f7 {[%emt 0:00:01]} Re2 {[%emt 0:00:01]} 69. Ra5 {[%emt 0:00:06]} Kh7 {[%emt 0:00:00]} 70. Rh5+ {[%emt 0:00:01]} Kg6 {[%emt 0:00:13]} 71. Kg8 {[%emt 0:00:01]} 1-0

[Event "CCT Chessable Masters Play-In 2025"]
[Site "Online"]
[Date "2025.02.17"]
[Round "5.49"]
[White "Meier, Georg"]
[Black "Pranav Anand"]
[Result "1/2-1/2"]
[ECO "A46"]
[WhiteElo "2598"]
[BlackElo "2538"]
[PlyCount "117"]
[EventDate "2025.02.13"]
[EventType "swiss"]
[EventCountry "NET"]
[TimeControl "600"]
[WhiteClock "0:00:33"]
[BlackClock "0:00:32"]

1. Nf3 {[%emt 0:00:01]} Nf6 {[%emt 0:00:04]} 2. g3 {[%emt 0:00:00]} d5 {[%emt 0:00:04]} 3. Bg2 {[%emt 0:00:01]} e6 {[%emt 0:00:04]} 4. d4 {[%emt 0:00:04]} b5 {[%emt 0:00:09]} 5. Qd3 {[%emt 0:00:07]} a6 {[%emt 0:00:06]} 6. Bg5 {[%emt 0:00:06]} Bb7 {[%emt 0:00:05]} 7. Nbd2 {[%emt 0:00:13]} Nbd7 {[%emt 0:00:01]} 8. a4 {[%emt 0:00:10]} b4 {[%emt 0:00:04]} 9. c4 {[%emt 0:00:03]} bxc3 {[%emt 0:00:05]} 10. bxc3 {[%emt 0:00:01]} Be7 {[%emt 0:00:02]} 11. O-O {[%emt 0:00:02]} O-O {[%emt 0:00:01]} 12. Rfb1 {[%emt 0:00:11]} Rb8 {[%emt 0:00:06]} 13. a5 {[%emt 0:00:07]} h6 {[%emt 0:00:07]} 14. Bf4 {[%emt 0:00:06]} g5 {[%emt 0:00:13]} 15. Be3 {[%emt 0:00:04]} Kg7 {[%emt 0:00:18]} 16. h3 {[%emt 0:00:12]} c5 {[%emt 0:00:16]} 17. c4 {[%emt 0:00:01]} dxc4 {[%emt 0:00:03]} 18. Qxc4 {[%emt 0:00:01]} Nd5 {[%emt 0:00:05]} 19. Nf1 {[%emt 0:00:34]} Bf6 {[%emt 0:00:29]} 20. Rd1 {[%emt 0:00:39]} Qe7 {[%emt 0:00:24]} 21. Rac1 {[%emt 0:00:14]} Nxe3 {[%emt 0:00:29]} 22. Nxe3 {[%emt 0:00:10]} Bxf3 {[%emt 0:00:01]} 23. Bxf3 {[%emt 0:00:03]} cxd4 {[%emt 0:00:00]} 24. Ng4 {[%emt 0:00:03]} Rb5 {[%emt 0:00:25]} 25. Bc6 {[%emt 0:01:37]} Ne5 {[%emt 0:01:59]} 26. Nxe5 {[%emt 0:00:03]} Rxe5 {[%emt 0:00:00]} 27. Qxa6 {[%emt 0:00:02]} Qb4 {[%emt 0:00:00]} 28. Ra1 {[%emt 0:00:30]} Bd8 {[%emt 0:00:04]} 29. Rdb1 {[%emt 0:01:10]} Qc3 {[%emt 0:00:01]} 30. Bb5 {[%emt 0:00:12]} d3 {[%emt 0:00:24]} 31. Bxd3 {[%emt 0:00:07]} Rxa5 {[%emt 0:00:04]} 32. Rxa5 {[%emt 0:00:03]} Qxa5 {[%emt 0:00:00]} 33. Qd6 {[%emt 0:00:12]} Bf6 {[%emt 0:00:06]} 34. Rb7 {[%emt 0:00:06]} Qe5 {[%emt 0:00:23]} 35. Qd7 {[%emt 0:00:06]} h5 {[%emt 0:00:19]} 36. Rb5 {[%emt 0:00:24]} Qa1+ {[%emt 0:00:01]} 37. Kg2 {[%emt 0:00:02]} Qc3 {[%emt 0:00:20]} 38. Rb7 {[%emt 0:00:06]} Qe5 {[%emt 0:00:07]} 39. Rb5 {[%emt 0:00:07]} Qc3 {[%emt 0:00:01]} 40. Qb7 {[%emt 0:00:21]} Qd4 {[%emt 0:00:09]} 41. Qf3 {[%emt 0:00:01]} Rh8 {[%emt 0:00:26]} 42. Be4 {[%emt 0:00:16]} h4 {[%emt 0:00:19]} 43. g4 {[%emt 0:00:03]} Rc8 {[%emt 0:00:10]} 44. e3 {[%emt 0:00:15]} Qa1 {[%emt 0:00:04]} 45. Bb1 {[%emt 0:00:04]} Qa4 {[%emt 0:00:06]} 46. Rb7 {[%emt 0:00:04]} Rc1 {[%emt 0:00:06]} 47. Qe4 {[%emt 0:00:02]} Qxe4+ {[%emt 0:00:07]} 48. Bxe4 {[%emt 0:00:00]} Kf8 {[%emt 0:00:02]} 49. Bd3 {[%emt 0:00:01]} Rd1 {[%emt 0:00:02]} 50. Bb5 {[%emt 0:00:01]} Rd2 {[%emt 0:00:00]} 51. Bc6 {[%emt 0:00:01]} Be5 {[%emt 0:00:03]} 52. Ra7 {[%emt 0:00:02]} Bg3 {[%emt 0:00:02]} 53. Ra8+ {[%emt 0:00:10]} Kg7 {[%emt 0:00:02]} 54. Ra7 {[%emt 0:00:00]} Rxf2+ {[%emt 0:00:00]} 55. Kg1 {[%emt 0:00:01]} Rf6 {[%emt 0:00:03]} 56. Kg2 {[%emt 0:00:01]} Rf2+ {[%emt 0:00:02]} 57. Kg1 {[%emt 0:00:01]} Rd2 {[%emt 0:00:14]} 58. Be8 {[%emt 0:00:01]} Rf2 {[%emt 0:00:01]} 59. Bc6 {[%emt 0:00:02]} 1/2-1/2

[Event "CCT Chessable Masters Play-In 2025"]
[Site "Online"]
[Date "2025.02.17"]
[Round "5.50"]
[White "Sokolovsky, Yahli"]
[Black "Madaminov, Mukhiddin"]
[Result "1/2-1/2"]
[ECO "A47"]
[WhiteElo "2552"]
[BlackElo "2521"]
[PlyCount "152"]
[EventDate "2025.02.13"]
[EventType "swiss"]
[EventCountry "NET"]
[TimeControl "600"]
[WhiteClock "0:00:09"]
[BlackClock "0:00:15"]

1. d4 {[%emt 0:00:04]} Nf6 {[%emt 0:00:02]} 2. Nf3 {[%emt 0:00:07]} b6 {[%emt 0:00:02]} 3. e3 {[%emt 0:00:03]} Bb7 {[%emt 0:00:01]} 4. c4 {[%emt 0:00:01]} g6 {[%emt 0:00:01]} 5. Nc3 {[%emt 0:00:02]} Bg7 {[%emt 0:00:07]} 6. Be2 {[%emt 0:00:14]} O-O {[%emt 0:00:02]} 7. O-O {[%emt 0:00:00]} e6 {[%emt 0:00:09]} 8. b3 {[%emt 0:00:06]} c5 {[%emt 0:00:07]} 9. Ba3 {[%emt 0:00:28]} d6 {[%emt 0:00:06]} 10. Qd2 {[%emt 0:00:06]} Qe7 {[%emt 0:00:26]} 11. Rad1 {[%emt 0:00:12]} Na6 {[%emt 0:00:16]} 12. Nb5 {[%emt 0:00:35]} Rfd8 {[%emt 0:00:05]} 13. Bb2 {[%emt 0:00:29]} Nc7 {[%emt 0:00:19]} 14. Nxc7 {[%emt 0:00:04]} Qxc7 {[%emt 0:00:03]} 15. Qc1 {[%emt 0:00:02]} Ne4 {[%emt 0:00:27]} 16. Ne1 {[%emt 0:01:38]} e5 {[%emt 0:00:44]} 17. f3 {[%emt 0:00:12]} Ng5 {[%emt 0:00:10]} 18. d5 {[%emt 0:00:10]} f5 {[%emt 0:00:03]} 19. e4 {[%emt 0:00:24]} Bh6 {[%emt 0:00:28]} 20. Qc2 {[%emt 0:00:15]} fxe4 {[%emt 0:00:37]} 21. fxe4 {[%emt 0:00:37]} Rf8 {[%emt 0:00:02]} 22. Bc1 {[%emt 0:00:35]} Rxf1+ {[%emt 0:00:04]} 23. Bxf1 {[%emt 0:00:00]} Rf8 {[%emt 0:00:07]} 24. h4 {[%emt 0:00:17]} Nf7 {[%emt 0:00:10]} 25. Be2 {[%emt 0:00:15]} Bc8 {[%emt 0:00:08]} 26. Nd3 {[%emt 0:00:29]} Bxc1 {[%emt 0:00:57]} 27. Qxc1 {[%emt 0:00:00]} Qe7 {[%emt 0:00:01]} 28. g3 {[%emt 0:00:03]} g5 {[%emt 0:00:01]} 29. h5 {[%emt 0:00:07]} Bh3 {[%emt 0:00:28]} 30. Nf2 {[%emt 0:00:09]} Bd7 {[%emt 0:00:22]} 31. Bg4 {[%emt 0:00:03]} Kg7 {[%emt 0:01:15]} 32. Rf1 {[%emt 0:00:01]} Qe8 {[%emt 0:00:14]} 33. Qe3 {[%emt 0:00:25]} Qc8 {[%emt 0:00:04]} 34. Bxd7 {[%emt 0:00:54]} Qxd7 {[%emt 0:00:00]} 35. Kg2 {[%emt 0:00:01]} h6 {[%emt 0:00:03]} 36. Qe2 {[%emt 0:00:02]} Nd8 {[%emt 0:00:06]} 37. Ng4 {[%emt 0:00:00]} Rxf1 {[%emt 0:00:06]} 38. Kxf1 {[%emt 0:00:01]} Qf7+ {[%emt 0:00:00]} 39. Kg2 {[%emt 0:00:00]} Qxh5 {[%emt 0:00:01]} 40. Qf3 {[%emt 0:00:03]} Qf7 {[%emt 0:00:03]} 41. Qe2 {[%emt 0:00:01]} Qg6 {[%emt 0:00:04]} 42. Qf3 {[%emt 0:00:01]} h5 {[%emt 0:00:08]} 43. Ne3 {[%emt 0:00:01]} g4 {[%emt 0:00:00]} 44. Nf5+ {[%emt 0:00:00]} Kf8 {[%emt 0:00:15]} 45. Qf2 {[%emt 0:00:04]} Nf7 {[%emt 0:00:00]} 46. a3 {[%emt 0:00:04]} Ke8 {[%emt 0:00:11]} 47. Qd2 {[%emt 0:00:01]} Kd7 {[%emt 0:00:03]} 48. b4 {[%emt 0:00:00]} Qg5 {[%emt 0:00:01]} 49. Qd1 {[%emt 0:00:02]} Kc7 {[%emt 0:00:05]} 50. bxc5 {[%emt 0:00:02]} bxc5 {[%emt 0:00:02]} 51. Qe1 {[%emt 0:00:00]} Kb7 {[%emt 0:00:02]} 52. Qb1+ {[%emt 0:00:01]} Kc7 {[%emt 0:00:02]} 53. Qc2 {[%emt 0:00:00]} Nh6 {[%emt 0:00:02]} 54. Nxh6 {[%emt 0:00:04]} Qxh6 {[%emt 0:00:01]} 55. Qf2 {[%emt 0:00:00]} Qg6 {[%emt 0:00:02]} 56. Qe1 {[%emt 0:00:02]} Qf7 {[%emt 0:00:02]} 57. Qa5+ {[%emt 0:00:01]} Kc8 {[%emt 0:00:01]} 58. Qa6+ {[%emt 0:00:01]} Qb7 {[%emt 0:00:05]} 59. Qxd6 {[%emt 0:00:01]} Qb2+ {[%emt 0:00:01]} 60. Kg1 {[%emt 0:00:00]} Qd4+ {[%emt 0:00:02]} 61. Kf1 {[%emt 0:00:02]} Qxc4+ {[%emt 0:00:00]} 62. Kf2 {[%emt 0:00:00]} Qd4+ {[%emt 0:00:02]} 63. Kf1 {[%emt 0:00:01]} Qd3+ {[%emt 0:00:00]} 64. Kf2 {[%emt 0:00:00]} Qf3+ {[%emt 0:00:01]} 65. Kg1 {[%emt 0:00:02]} Qxg3+ {[%emt 0:00:01]} 66. Kf1 {[%emt 0:00:00]} Qf3+ {[%emt 0:00:00]} 67. Kg1 {[%emt 0:00:00]} Qe3+ {[%emt 0:00:01]} 68. Kf1 {[%emt 0:00:01]} Qd3+ {[%emt 0:00:01]} 69. Kg1 {[%emt 0:00:00]} Qd4+ {[%emt 0:00:00]} 70. Kf1 {[%emt 0:00:01]} c4 {[%emt 0:00:00]} 71. Qc6+ {[%emt 0:00:01]} Kb8 {[%emt 0:00:01]} 72. Qe8+ {[%emt 0:00:01]} Kb7 {[%emt 0:00:00]} 73. Qb5+ {[%emt 0:00:00]} Kc7 {[%emt 0:00:01]} 74. Qc6+ {[%emt 0:00:01]} Kb8 {[%emt 0:00:00]} 75. Qd6+ {[%emt 0:00:00]} Kb7 {[%emt 0:00:01]} 76. Qc6+ {[%emt 0:00:01]} Kb8 {[%emt 0:00:00]} 1/2-1/2

[Event "CCT Chessable Masters Play-In 2025"]
[Site "Online"]
[Date "2025.02.17"]
[Round "5.51"]
[White "Pultinevicius, Paulius"]
[Black "Narayanan, Srinath"]
[Result "1-0"]
[ECO "D26"]
[WhiteElo "2566"]
[BlackElo "2516"]
[PlyCount "59"]
[EventDate "2025.02.13"]
[EventType "swiss"]
[EventCountry "NET"]
[TimeControl "600"]
[WhiteClock "0:06:22"]
[BlackClock "0:01:51"]

1. d4 {[%emt 0:00:07]} d5 {[%emt 0:00:08]} 2. c4 {[%emt 0:00:01]} dxc4 {[%emt 0:00:00]} 3. Nf3 {[%emt 0:00:09]} Nf6 {[%emt 0:00:03]} 4. e3 {[%emt 0:00:02]} e6 {[%emt 0:00:00]} 5. Bxc4 {[%emt 0:00:01]} Be7 {[%emt 0:00:01]} 6. O-O {[%emt 0:00:02]} O-O {[%emt 0:00:01]} 7. b3 {[%emt 0:00:02]} a6 {[%emt 0:00:05]} 8. a4 {[%emt 0:00:05]} c5 {[%emt 0:00:08]} 9. Bb2 {[%emt 0:00:04]} Nc6 {[%emt 0:00:01]} 10. Nbd2 {[%emt 0:00:04]} Bd7 {[%emt 0:00:57]} 11. dxc5 {[%emt 0:00:05]} Bxc5 {[%emt 0:00:02]} 12. Bxf6 {[%emt 0:00:01]} gxf6 {[%emt 0:00:00]} 13. Ne4 {[%emt 0:00:02]} Be7 {[%emt 0:00:00]} 14. Qe2 {[%emt 0:00:30]} Na5 {[%emt 0:00:46]} 15. Bd3 {[%emt 0:00:16]} f5 {[%emt 0:00:11]} 16. Ned2 {[%emt 0:00:04]} Bf6 {[%emt 0:00:17]} 17. Rad1 {[%emt 0:00:04]} Qe7 {[%emt 0:00:05]} 18. e4 {[%emt 0:00:01]} Rfe8 {[%emt 0:00:29]} 19. Rfe1 {[%emt 0:00:01]} Qb4 {[%emt 0:00:14]} 20. Nc4 {[%emt 0:00:02]} Nxb3 {[%emt 0:00:13]} 21. Nfe5 {[%emt 0:00:06]} Bxa4 {[%emt 0:01:13]} 22. Qh5 {[%emt 0:00:06]} Re7 {[%emt 0:00:27]} 23. exf5 {[%emt 0:00:05]} Nc5 {[%emt 0:00:10]} 24. Ng4 {[%emt 0:00:04]} Qc3 {[%emt 0:01:06]} 25. Nce5 {[%emt 0:00:05]} Bxe5 {[%emt 0:01:00]} 26. f6 {[%emt 0:01:23]} Bxf6 {[%emt 0:00:05]} 27. Qxh7+ {[%emt 0:00:01]} Kf8 {[%emt 0:00:01]} 28. Nh6 {[%emt 0:00:00]} Rd7 {[%emt 0:00:26]} 29. Qg8+ {[%emt 0:00:05]} Ke7 {[%emt 0:00:00]} 30. Nf5# {[%emt 0:00:00]} 1-0